lending/lending_fUSD_20241005
["ID","MTS","AMOUNT","RATE_DAILY","PERIOD"]
[339915889,1728148276591,-500.0,0.0004041,30]
[339915890,1728148276600,-500.0,0.0004041,30]
[339915891,1728148276609,-500.0,0.0004041,30]
[339915892,1728148276618,-500.0,0.0004041,30]
[339915893,1728148276627,-500.0,0.0004041,30]
[339915894,1728148276636,-151.0,0.0004041,14]
[339915895,1728148276645,-462.35732183,0.0004041,30]
[339915896,1728148276654,-500.0,0.0004041,30]
[339915897,1728148276663,-524.96,0.0004041,30]
[339915898,1728148276673,-500.0,0.0004041,30]
[339915899,1728148276685,-500.0,0.0004041,30]
[339915900,1728148276695,-500.0,0.0004041,30]
[339915901,1728148276707,-500.0,0.0004041,30]
[339915902,1728148276717,-500.0,0.0004041,30]
[339915903,1728148276726,-500.0,0.0004041,30]
[339915904,1728148276738,-500.0,0.0004041,30]
[339915905,1728148276747,-500.0,0.0004041,30]
[339915906,1728148276756,-500.0,0.0004041,30]
[339915907,1728148276765,-500.0,0.0004041,30]
[339915908,1728148276774,-500.0,0.0004041,30]
[339915909,1728148276783,-299.22,0.0004041,30]
[339915910,1728148276791,-500.0,0.0004041,30]
[339915911,1728148276801,-500.0,0.0004041,30]
[339915912,1728148276810,-500.0,0.0004041,30]
[339915913,1728148276818,-500.0,0.0004041,30]
[339915914,1728148276829,-500.0,0.0004041,30]
[339915915,1728148276838,-500.0,0.0004041,30]
[339915916,1728148276847,-732.67,0.0004041,30]
[339915917,1728148276857,-500.0,0.0004041,30]
[339915918,1728148276865,-500.0,0.0004041,30]
[339915919,1728148276875,-500.0,0.0004041,30]
[339915920,1728148276885,-500.0,0.0004041,30]
[339915921,1728148276897,-500.0,0.0004041,30]
[339915922,1728148276907,-500.0,0.0004041,30]
[339915923,1728148276918,-476.92277472,0.0004041,30]
[339915924,1728148276928,-500.0,0.0004041,30]
[339915925,1728148276937,-500.0,0.0004041,30]
[339915926,1728148276947,-500.0,0.0004041,30]
[339915927,1728148276957,-500.0,0.0004041,30]
[339915928,1728148276967,-500.0,0.0004041,30]
[339915929,1728148276976,-500.0,0.0004041,30]
[339915930,1728148276985,-500.0,0.0004041,30]
[339915931,1728148276994,-520.51,0.0004041,30]
[339915932,1728148277003,-500.0,0.0004041,30]
[339915933,1728148277012,-500.0,0.0004041,30]
[339915934,1728148277022,-500.0,0.0004041,30]
[339915935,1728148277032,-500.0,0.0004041,30]
[339915936,1728148277041,-500.0,0.0004041,30]
[339915937,1728148277050,-500.0,0.0004041,30]
[339915938,1728148277060,-500.0,0.0004041,30]
[339915939,1728148277069,-500.0,0.0004041,30]
[339915940,1728148277078,-500.0,0.0004041,30]
[339915941,1728148277087,-500.0,0.0004041,30]
[339915942,1728148277096,-500.0,0.0004041,30]
[339915943,1728148277105,-500.0,0.0004041,30]
[339915944,1728148277115,-647.06,0.0004041,30]
[339915945,1728148277125,-500.0,0.0004041,30]
[339915946,1728148277134,-500.0,0.0004041,30]
[339915947,1728148277144,-1264.99,0.0004041,30]
[339915948,1728148277153,-459.94808915,0.0004041,30]
[339915949,1728148277162,-500.0,0.0004041,30]
[339915950,1728148277171,-500.0,0.0004041,30]
[339915951,1728148277180,-500.0,0.0004041,30]
[339915952,1728148277190,-551.16350181,0.0004041,30]
[339915953,1728148277199,-500.0,0.0004041,30]
[339915954,1728148277213,-500.0,0.0004041,30]
[339915955,1728148277223,-500.0,0.0004041,30]
[339915956,1728148277233,-500.0,0.0004041,30]
[339915957,1728148277242,-172.54,0.00040439,120]
[339915958,1728148277253,-2727.16048077,0.00040681,7]
[339915959,1728148277262,-826.07999926,0.00040681,7]
[339915960,1728148277271,-1448.4206,0.00040721,2]
[339915961,1728148277281,-550.9499,0.00040721,2]
[339915962,1728148277291,-7594.8912,0.00040721,2]
[339915963,1728148277300,-2500.0,0.0004082,120]
[339915964,1728148277310,-638.2,0.00040821,30]
[339915965,1728148277319,-500.0,0.00040821,30]
[339915966,1728148277327,-500.0,0.00040821,30]
[339915967,1728148277336,-181.08620657,0.00040821,30]
[339915968,1728148277345,-500.0,0.00040821,30]
[339915969,1728148277354,-500.0,0.00040821,30]
[339915970,1728148277363,-500.0,0.00040821,30]
[339915971,1728148277373,-500.0,0.00040821,30]
[339915972,1728148277382,-500.0,0.00040821,30]
[339915973,1728148277391,-500.0,0.00040821,30]
[339915974,1728148277400,-500.0,0.00040821,30]
[339915975,1728148277409,-500.0,0.00040821,30]
[339915976,1728148277419,-500.0,0.00040821,30]
[339915977,1728148277431,-983.43,0.00040821,30]
[339915978,1728148277444,-500.0,0.00040821,30]
[339915979,1728148277454,-1000.0,0.00040821,30]
[339915980,1728148277464,-398.51647416,0.00040821,30]
[339915981,1728148277495,-101.48352584,0.00040821,30]
[339915982,1728148277504,-500.0,0.00040821,30]
[339915983,1728148277513,-500.0,0.00040821,30]
[339915984,1728148277522,-369.39555917,0.00040821,30]
[339915985,1728148277533,-137.30444083,0.00040821,30]
[339915986,1728148277543,-500.0,0.00040821,30]
[339915987,1728148277552,-500.0,0.00040821,30]
[339915988,1728148277561,-500.0,0.00040821,30]
[339915989,1728148277570,-500.0,0.00040821,30]
[339915990,1728148277579,-572.64050871,0.00040821,30]
[339915991,1728148277592,-284.02949129,0.00040821,30]
[339915992,1728148277601,-728.31,0.00040821,30]
[339915993,1728148277611,-522.39,0.00040821,30]
[339915994,1728148277621,-500.0,0.00040821,30]
[339915995,1728148277631,-500.0,0.00040821,30]
[339915996,1728148277640,-514.49,0.00040821,30]
[339915997,1728148277650,-500.0,0.00040821,30]
[339915998,1728148277661,-500.0,0.00040821,30]
[339915999,1728148277670,-500.0,0.00040821,30]
[339916000,1728148277680,-500.0,0.00040821,30]
[339916001,1728148277689,-148.35147746,0.00040821,30]
[339916002,1728148277701,-351.64852254,0.00040821,30]
[339916003,1728148277712,-500.0,0.00040821,30]
[339916004,1728148277723,-500.0,0.00040821,30]
[339916005,1728148277733,-500.0,0.00040821,30]
[339916006,1728148277743,-439.51865148,0.00040821,30]
[339916007,1728148277753,-506.76722236,0.00040821,30]
[339916008,1728148277762,-500.0,0.00040821,30]
[339916009,1728148277771,-500.0,0.00040821,30]
[339916010,1728148277781,-500.0,0.00040821,30]
[339916011,1728148277791,-285.32620362,0.00040821,30]
[339916012,1728148277857,-214.67379638,0.00040821,30]
[339916013,1728148277867,-124.13120362,0.00040821,30]
[339916014,1728148277879,-375.86879638,0.00040821,30]
[339916015,1728148277888,-500.0,0.00040821,30]
[339916016,1728148277898,-500.0,0.00040821,7]
[339916017,1728148277908,-500.0,0.00040821,30]
[339916018,1728148277918,-500.0,0.00040821,30]
[339916019,1728148277927,-500.0,0.00040821,30]
[339916020,1728148277937,-500.0,0.00040821,30]
[339916021,1728148277946,-500.0,0.00040821,30]
[339916022,1728148277956,-500.0,0.00040821,30]
[339916023,1728148277966,-500.0,0.00040821,30]
[339916024,1728148277976,-500.0,0.00040821,30]
[339916025,1728148277985,-184.94467411,0.00040821,30]
[339916026,1728148277997,-315.05532589,0.00040821,30]
[339916027,1728148278007,-218.76467411,0.00040821,30]
[339916028,1728148278018,-278.90148228,0.00040821,30]
[339916029,1728148278030,-2.33384361,0.00040821,30]
[339916030,1728148278039,-500.0,0.00040821,30]
[339916031,1728148278048,-85.87536439,0.00040821,30]
[339916032,1728148278059,-414.12463561,0.00040821,30]
[339916033,1728148278069,-500.0,0.00040821,30]
[339916034,1728148278079,-500.0,0.00040821,30]
[339916035,1728148278088,-500.0,0.00040821,30]
[339916036,1728148278097,-500.0,0.00040821,30]
[339916037,1728148278107,-500.0,0.00040821,30]
[339916038,1728148278116,-500.0,0.00040821,30]
[339916039,1728148278125,-500.0,0.00040821,30]
[339916040,1728148278135,-500.0,0.00040821,30]
[339916041,1728148278144,-500.0,0.00040821,30]
[339916042,1728148278154,-500.0,0.00040821,30]
[339916043,1728148278164,-500.0,0.00040821,30]
[339916044,1728148278174,-500.0,0.00040821,30]
[339916045,1728148278183,-500.0,0.00040821,30]
[339916046,1728148278193,-500.0,0.00040821,30]
[339916047,1728148278204,-237.79117614,0.00040821,30]
[339916048,1728148278218,-262.20882386,0.00040821,30]
[339916049,1728148278227,-500.0,0.00040821,30]
[339916050,1728148278237,-500.0,0.00040821,30]
[339916051,1728148278257,-500.0,0.00040821,30]
[339916052,1728148278267,-500.0,0.00040821,30]
[339916053,1728148278276,-500.0,0.00040821,30]
[339916054,1728148278286,-500.0,0.00040821,30]
[339916055,1728148278295,-500.0,0.00040821,30]
[339916056,1728148278304,-494.68705664,0.00040821,30]
[339916057,1728148278316,-5.31294336,0.00040821,30]
[339916058,1728148278326,-468.48797053,0.00040821,30]
[339916059,1728148278338,-31.51202947,0.00040821,30]
[339916060,1728148278348,-500.0,0.00040821,30]
[339916061,1728148278357,-500.0,0.00040821,30]
[339916062,1728148278367,-500.0,0.00040821,30]
[339916063,1728148278376,-500.0,0.00040821,30]
[339916064,1728148278385,-500.0,0.00040821,30]
[339916065,1728148278395,-500.0,0.00040821,30]
[339916066,1728148278405,-500.0,0.00040821,30]
[339916067,1728148278415,-500.0,0.00040821,30]
[339916068,1728148278425,-500.0,0.00040821,30]
[339916069,1728148278435,-500.0,0.00040821,30]
[339916070,1728148278445,-500.0,0.00040821,30]
[339916071,1728148278455,-500.0,0.00040821,30]
[339916072,1728148278465,-500.0,0.00040821,30]
[339916073,1728148278475,-500.0,0.00040821,30]
[339916074,1728148278484,-500.0,0.00040821,30]
[339916075,1728148278498,-302.67017628,0.00040821,30]
[339916076,1728148278509,-500.0,0.00040821,30]
[339916077,1728148278519,-631.23945877,0.00040821,30]
[339916078,1728148278528,-500.0,0.00040821,30]
[339916079,1728148278537,-500.0,0.00040821,30]
[339916080,1728148278546,-500.0,0.00040821,30]
[339916081,1728148278556,-500.0,0.00040821,30]
[339916082,1728148278566,-508.75,0.00040821,30]
[339916083,1728148278577,-500.0,0.00040821,30]
[339916084,1728148278587,-500.0,0.00040821,30]
[339916085,1728148278597,-500.0,0.00040821,30]
[339916086,1728148278607,-37.95103627,0.00040821,30]
[339916087,1728148278621,-468.92896373,0.00040821,30]
[339916088,1728148278631,-513.16,0.00040821,30]
[339916089,1728148278640,-500.0,0.00040821,30]
[339916090,1728148278651,-500.0,0.00040821,30]
[339916091,1728148278660,-500.0,0.00040821,30]
[339916092,1728148278670,-673.36,0.00040821,30]
[339916093,1728148278680,-500.0,0.00040821,30]
[339916094,1728148278689,-500.0,0.00040821,30]
[339916095,1728148278700,-500.0,0.00040821,30]
[339916096,1728148278712,-500.0,0.00040821,30]
[339916097,1728148278723,-500.0,0.00040821,30]
[339916098,1728148278733,-500.0,0.00040821,30]
[339916099,1728148278745,-500.0,0.00040821,30]
[339916100,1728148278755,-500.0,0.00040821,30]
[339916101,1728148278765,-500.0,0.00040821,30]
[339916102,1728148278775,-500.0,0.00040821,30]
[339916103,1728148278785,-250.31093527,0.00040821,30]
[339916104,1728148278799,-249.68906473,0.00040821,30]
[339916105,1728148278808,-500.0,0.00040821,30]
[339916106,1728148278818,-500.0,0.00040821,30]
[339916107,1728148278828,-522.97734435,0.00040821,30]
[339916108,1728148278838,-500.0,0.00040821,30]
[339916109,1728148278848,-500.0,0.00040821,30]
[339916110,1728148278858,-500.0,0.00040821,30]
[339916111,1728148278867,-500.0,0.00040821,30]
[339916112,1728148278877,-500.0,0.00040821,30]
[339916113,1728148278887,-500.0,0.00040821,30]
[339916114,1728148278897,-500.0,0.00040821,30]
[339916115,1728148278907,-500.0,0.00040821,30]
[339916116,1728148278917,-500.0,0.00040821,30]
[339916117,1728148278926,-500.0,0.00040821,30]
[339916118,1728148278937,-151.0,0.00040821,14]
[339916119,1728148278947,-500.0,0.00040821,30]
[339916120,1728148278958,-519.42,0.00040821,30]
[339916121,1728148278968,-500.0,0.00040821,30]
[339916122,1728148278978,-500.0,0.00040821,30]
[339916123,1728148278988,-500.0,0.00040821,30]
[339916124,1728148278998,-394.11309092,0.00040821,30]
[339916125,1728148279011,-226.87690908,0.00040821,30]
[339916126,1728148279021,-500.0,0.00040821,30]
[339916127,1728148279032,-500.0,0.00040821,30]
[339916128,1728148279042,-500.0,0.00040821,30]
[339916129,1728148279052,-267.6230909,0.00040821,30]
[339916130,1728148279073,-232.3769091,0.00040821,30]
[339916131,1728148279082,-500.0,0.00040821,30]
[339916132,1728148279091,-500.0,0.00040821,30]
[339916133,1728148279101,-135.67976125,0.00040821,30]
[339916134,1728148279114,-364.32023875,0.00040821,30]
[339916135,1728148279124,-500.0,0.00040821,30]
[339916136,1728148279134,-500.0,0.00040821,30]
[339916137,1728148279144,-592.68,0.00040821,30]
[339916138,1728148279154,-500.0,0.00040821,30]
[339916139,1728148279164,-500.0,0.00040821,30]
[339916140,1728148279175,-500.0,0.00040821,30]
[339916141,1728148279184,-500.0,0.00040821,30]
[339916142,1728148279194,-500.0,0.00040821,30]
[339916143,1728148279205,-500.0,0.00040821,30]
[339916144,1728148279217,-500.0,0.00040821,30]
[339916145,1728148279227,-500.0,0.00040821,30]
[339916146,1728148279238,-500.0,0.00040821,30]
[339916147,1728148279247,-500.0,0.00040821,30]
[339916148,1728148279258,-500.0,0.00040821,30]
[339916149,1728148279268,-500.0,0.00040821,30]
[339916150,1728148279278,-500.0,0.00040821,30]
[339916151,1728148279288,-679.42039492,0.00040821,30]
[339916152,1728148279418,-97.64960508,0.00040821,30]
[339916153,1728148279428,-500.0,0.00040821,30]
[339916154,1728148279437,-500.0,0.00040821,30]
[339916155,1728148279447,-573.38474014,0.00040821,30]
[339916156,1728148279457,-500.0,0.00040821,30]
[339916157,1728148279466,-500.0,0.00040821,30]
[339916158,1728148279476,-501.27513315,0.00040821,30]
[339916159,1728148279487,-500.0,0.00040821,30]
[339916160,1728148279497,-500.0,0.00040821,30]
[339916161,1728148279507,-500.0,0.00040821,30]
[339916162,1728148279516,-150.0,0.00040821,30]
[339916163,1728148279526,-500.0,0.00040821,30]
[339916164,1728148279536,-500.0,0.00040821,30]
[339916165,1728148279546,-500.0,0.00040821,30]
[339916166,1728148279555,-500.0,0.00040821,30]
[339916167,1728148279566,-617.48,0.00040821,30]
[339916168,1728148279576,-500.0,0.00040821,30]
[339916169,1728148279585,-500.0,0.00040821,30]
[339916170,1728148279595,-500.0,0.00040821,30]
[339916171,1728148279605,-500.0,0.00040821,30]
[339916172,1728148279614,-500.0,0.00040821,30]
[339916173,1728148279624,-500.0,0.00040821,30]
[339916174,1728148279634,-781.01,0.00040821,30]
[339916175,1728148279645,-500.0,0.00040821,30]
[339916176,1728148279655,-500.0,0.00040821,30]
[339916177,1728148279665,-500.0,0.00040821,30]
[339916178,1728148279676,-500.0,0.00040821,30]
[339916179,1728148279687,-500.0,0.00040821,30]
[339916180,1728148279696,-500.0,0.00040821,30]
[339916181,1728148279707,-500.0,0.00040821,30]
[339916182,1728148279718,-500.0,0.00040821,30]
[339916183,1728148279728,-500.0,0.00040821,30]
[339916184,1728148279738,-500.0,0.00040821,30]
[339916185,1728148279930,-500.0,0.00040821,30]
[339916186,1728148279939,-201.59858243,0.00040821,30]
[339916187,1728148279949,-500.0,0.00040821,30]
[339916188,1728148279959,-500.0,0.00040821,30]
[339916189,1728148279968,-393.22573633,0.00040821,30]
[339916190,1728148280444,-377.077714,0.0004,14]
[339916191,1728148280453,-106.77426367,0.00040821,30]
[339916192,1728148280463,-31.9843758,0.00040821,30]
[339916193,1728148280474,-468.0156242,0.00040821,30]
[339916194,1728148280483,-500.0,0.00040821,30]
[339916195,1728148280495,-500.0,0.00040821,30]
[339916196,1728148280504,-500.0,0.00040821,30]
[339916197,1728148280513,-317.83329343,0.00040821,30]
[339916198,1728148280524,-182.16670657,0.00040821,30]
[339916199,1728148280534,-500.0,0.00040821,30]
[339916200,1728148280543,-448.27,0.00040821,30]
[339916201,1728148280553,-500.0,0.00040821,30]
[339916202,1728148280562,-500.0,0.00040821,30]
[339916203,1728148280571,-500.0,0.00040821,30]
[339916204,1728148280581,-500.0,0.00040821,30]
[339916205,1728148280590,-500.0,0.00040821,30]
[339916206,1728148280599,-500.0,0.00040821,30]
[339916207,1728148280609,-500.0,0.00040821,30]
[339916208,1728148280618,-500.0,0.00040821,30]
[339916209,1728148280627,-300.99202233,0.00040821,30]
[339916210,1728148280641,-199.00797767,0.00040821,30]
[339916211,1728148280651,-471.55202233,0.00040821,30]
[339916212,1728148668943,164.3,0.00010959,2]
[339916213,1728149129832,762.24895185,0.000101,2]
[339916214,1728149154777,444.05249741,6.94e-05,2]
[339916215,1728149242366,246.16890965,0.000101,2]
[339916216,1728149277948,150.0,0.0001,2]
[339916217,1728149302973,475.78057554,0.000109,2]
[339916218,1728149305723,324.64885122,0.000109,2]
[339916219,1728149315674,211.99284392,0.0001,2]
[339916220,1728149385106,151.0,0.00010781,2]
[339916222,1728149396722,178.74207767,0.000109,2]
[339916226,1728149432140,-168.75603806,0.0001099,2]
[339916227,1728149432149,-583.84962411,0.00010997,2]
[339916228,1728149432158,-2275.81986813,0.00010999,2]
[339916229,1728149432169,-4883.28400616,0.00010999,2]
[339916231,1728149432178,-150.0,0.00010999,2]
[339916233,1728149432187,-500.0,0.00010999,2]
[339916235,1728149432196,-566.96107401,0.00010999,2]
[339916236,1728149432205,-500.0,0.00010999,2]
[339916237,1728149432216,-500.0,0.00010999,2]
[339916238,1728149432226,-500.0,0.00010999,2]
[339916239,1728149432235,-304.14536991,0.00010999,2]
[339916240,1728149432245,-250.0,0.00011,2]
[339916241,1728149432255,-72.12267352,0.00011,2]
[339916242,1728149432269,-535.511,0.00011,2]
[339916243,1728149432281,-3273.10212446,0.00011,2]
[339916244,1728149432299,-454.92529219,0.00011,2]
[339916245,1728149432310,-47429.05094825,0.00011,2]
[339916246,1728149432335,-607.27361454,0.00011,2]
[339916247,1728149432346,-3084.0,0.00011,2]
[339916248,1728149432357,-18986.91999953,0.00011,2]
[339916249,1728149432368,-377.39865896,0.00011,2]
[339916250,1728149432381,-638.67272336,0.00011,2]
[339916251,1728149432393,-1356.19569135,0.00011,2]
[339916252,1728149432405,-951.22869428,0.00011,2]
[339916253,1728149432416,-984.09450233,0.00011,2]
[339916254,1728149432427,-1182.71091713,0.00011,2]
[339916255,1728149432437,-4268.90659672,0.00011,2]
[339916256,1728149432448,-32487.36089944,0.00011,2]
[339916257,1728149432459,-7874.3179034,0.00011,2]
[339916258,1728149432471,-291094.90444754,0.00011,2]
[339916259,1728149432486,-14973.23584767,0.00011,2]
[339916260,1728149432497,-9058.09230667,0.00011,2]
[339916261,1728149432508,-277.61067269,0.00011,2]
[339916262,1728149432519,-1096.73776496,0.00011,2]
[339916263,1728149432530,-1238.04,0.00011,2]
[339916264,1728149432541,-600.09293378,0.00011,2]
[339916265,1728149432552,-661.83076547,0.00011,2]
[339916266,1728149438277,-324.27050033,0.00011,2]
[339916267,1728149438289,-290.08119832,0.00011,2]
[339916268,1728149438300,-516.99421439,0.00011,2]
[339916269,1728149438311,-3806.45386408,0.00011,2]
[339916270,1728149438324,-858.216,0.00011,2]
[339916271,1728149438335,-2704.63123454,0.00011,2]
[339916272,1728149438400,-877.11585098,0.00011,2]
[339916273,1728149438411,-184381.46546065,0.00011,2]
[339916274,1728149438423,-319.24299861,0.00011,2]
[339916275,1728149438438,-6736.76284974,0.00011,2]
[339916276,1728149438449,-440.1604635,0.00011,2]
[339916277,1728149438460,-843.77773422,0.00011,2]
[339916278,1728149438473,-669.980028,0.00011,2]
[339916279,1728149438485,-526.17759152,0.00011,2]
[339916280,1728149438495,-13157.2710806,0.00011,2]
[339916281,1728149438507,-5811.84764848,0.00011,2]
[339916282,1728149438518,-24059.66385186,0.00011,2]
[339916283,1728149438529,-1355.02815999,0.00011,2]
[339916284,1728149438542,-1698.91124941,0.00011,2]
[339916285,1728149438556,-775.44461026,0.00011,2]
[339916286,1728149438567,-381.90375238,0.00011,2]
[339916287,1728149438578,-5314.22404625,0.00011,2]
[339916288,1728149438589,-10008.12252686,0.00011,2]
[339916289,1728149438600,-382.87204262,0.00011,2]
[339916290,1728149438611,-462.91811486,0.00011,2]
[339916291,1728149438623,-4010.10564,0.00011,2]
[339916292,1728149438637,-15034.0569413,0.00011,2]
[339916293,1728149438659,-932.219486,0.00011,2]
[339916294,1728149438670,-521.17192969,0.00011,2]
[339916295,1728149438687,-20820.71753437,0.00011,2]
[339916296,1728149438702,-225845.65378668,0.00011,2]
[339916297,1728149438713,-13346.76716289,0.00011,2]
[339916298,1728149438725,-467.14661128,0.00011,2]
[339916299,1728149438737,-13092.22174315,0.00011,2]
[339916300,1728149438748,-447.52815512,0.00011,2]
[339916301,1728149438759,-441.66001173,0.00011,2]
[339916449,1728149440264,-282.20192305,0.00011,2]
[339916451,1728149440275,-1142.02776896,0.00011,2]
[339916457,1728149440324,-127811.00300299,0.00011,2]
[339916460,1728149440336,-40398.52504663,0.00011,2]
[339916462,1728149440347,-247076.37488487,0.00011,2]
[339916478,1728149440502,-2821.15694343,0.00011,2]
[339916759,1728149443312,-900.0,0.00011,2]
[339917062,1728149446239,-423743.45587769,0.00011,2]
[339917113,1728149446517,-2059.33678768,0.00011,2]
[339917540,1728149539823,2580.14869521,0.000109,2]
[339917541,1728149582124,170.51932731,0.00010899,2]
[339917542,1728149615861,227.83,9.989e-05,2]
[339917543,1728149682307,185108.442,0.00010899,2]
[339917544,1728149698072,36181.7753,0.000109,2]
[339917545,1728149721916,500.0,0.00010899,2]
[339917546,1728149722721,100000.0,0.000109,2]
[339917547,1728149736955,160.22,0.00010959,2]
[339917548,1728149804476,221137.9738,0.00010899,2]
[339917549,1728149848851,1475.3221,0.00010899,2]
[339917550,1728149873302,5703.669,0.00010899,2]
[339917551,1728149913156,226.994214,0.000109,2]
[339917552,1728149963774,1000.0,0.00010899,2]
[339917553,1728149965027,2322.13382568,0.00010899,2]
[339917554,1728150222400,152.79080492,0.000109,2]
[339917555,1728150268402,194.78892373,0.00021,90]
[339917556,1728150274555,216.43,9.074e-05,2]
[339917557,1728150275072,161.08,0.00010959,2]
[339917558,1728150377322,150.0,9.888e-05,2]
[339917559,1728150390367,2089.92044304,0.00010899,2]
[339917560,1728150400318,588.9124,0.00010899,2]
[339917561,1728150418835,1000.0,0.00010793,2]
[339917562,1728150426096,2122.6584,0.00010899,2]
[339917563,1728150467406,200.0,0.00010889,2]
[339917564,1728150518422,242.03,0.00010959,2]
[339917565,1728150544136,23900.0,0.00010922,2]
[339917566,1728150559813,180.94,0.00010959,2]
[339917567,1728150574516,167.14,0.00010926,2]
[339917568,1728150577750,5217.3877,0.00010899,2]
[339917569,1728150623641,1003.9748,0.00010899,2]
[339917573,1728150631675,-2043.47368449,0.00010997,2]
[339917574,1728150631685,-2447.116555,0.00010999,2]
[339917578,1728150637399,-512.80960002,0.00010999,2]
[339917579,1728150637565,-5424.56309898,0.00010999,2]
[339917738,1728150639378,-936.86960884,0.00010999,2]
[339917739,1728150639389,-240678.64113716,0.00010999,2]
[339917740,1728150639399,-351.61364317,0.00010999,2]
[339917741,1728150639408,-5731742.11621893,0.00011,2]
[339917742,1728150639489,-2500.3,0.00011,2]
[339917753,1728150639658,-1807.31998,0.00011,2]
[339918034,1728150642494,-2913.7216912,0.00011,2]
[339918041,1728150642552,-4896.24043572,0.00011,2]
[339918333,1728150645587,-1190.58656818,0.00011,2]
[339918335,1728150645601,-369.45228182,0.00011,2]
[339918396,1728150691684,150.0,0.0001089,2]
[339918397,1728150710060,3386.27557811,0.000109,2]
[339918398,1728150713157,1466.786944,0.00010943,2]
[339918399,1728150744424,12964.7321,0.00010899,2]
[339918400,1728150763490,900.0,0.00010898,2]
[339918401,1728150770411,23233.54620337,0.00010899,2]
[339918402,1728150770437,13039.41869663,0.00010899,2]
[339918403,1728150782797,54303.6174,0.000109,2]
[339918404,1728150797866,163.74,0.00010959,2]
[339918405,1728150815756,1880.92839879,0.000109,2]
[339918406,1728150852862,401.94,0.000109,2]
[339918407,1728150881310,200.6907088,0.000109,2]
[339918409,1728151002436,220.08,9.229e-05,2]
[339918410,1728151071671,1433.92938975,0.00010999,3]
[339918411,1728151071714,1433.92938976,0.00010999,3]
[339918412,1728151073604,262.1817,0.000109,2]
[339918415,1728151191795,167.14,0.00010968,2]
[339918416,1728151201153,4079.03,0.00010968,2]
[339918417,1728151241067,1692.83555892,0.000109,2]
[339918418,1728151303250,500.0,0.00010959,2]
[339918419,1728151375920,164.3,0.00010959,2]
[339918420,1728151439467,175.0,0.00010858,2]
[339918421,1728151439490,99.34,0.00010858,2]
[339918422,1728151467654,162.14826699,0.000109,2]
[339918423,1728151497458,250.0,0.0001085,2]
[339918424,1728151510754,229.35,0.00010931,2]
[339918425,1728151513519,516.93,0.00010931,2]
[339918426,1728151581705,150.0,0.00010854,2]
[339918427,1728151581764,150.0,0.00010905,2]
[339918428,1728151581821,150.0,0.00010899,2]
[339918429,1728151642876,150.0,0.00010766,2]
[339918430,1728151642923,150.0,0.00010758,2]
[339918431,1728151658718,393.10860168,0.00010886,2]
[339918432,1728151662894,209.07,9.141e-05,2]
[339918433,1728151666278,1523.55200301,0.000109,2]
[339918434,1728151705230,150.0,0.00010737,2]
[339918435,1728151763082,150.0,0.00010927,2]
[339918436,1728151783713,158.59352518,0.000109,2]
[339918437,1728151822721,150.0,0.00010727,2]
[339918438,1728151830796,150.0,0.00010825,2]
[339918464,1728151831515,-615.11,0.00010988,2]